fUST/lending_fUST_20260318
["ID","MTS","AMOUNT","RATE_DAILY","PERIOD"]
[408514007,1773790238281,-177.72274771,5.505e-05,2]
[408514008,1773790238290,-64148.78509465,5.506e-05,2]
[408514009,1773790238302,-20814.99999965,5.506e-05,2]
[408514011,1773790238313,-1447.62442233,5.506e-05,2]
[408514012,1773790238553,-283.408,5.506e-05,2]
[408514019,1773790243197,-10285.79276,5.506e-05,2]
[408514020,1773790243358,-4019.40121622,5.506e-05,2]
[408514021,1773790243378,-18121.95621869,5.506e-05,2]
[408514044,1773790246385,-3499.07532696,5.506e-05,2]
[408514070,1773791432281,-867.53430758,5.173e-05,2]
[408514267,1773791438334,-524.0,5.173e-05,2]
[408514269,1773791438346,-876.81769193,5.173e-05,2]
[408514271,1773791438359,-1155.78600943,5.173e-05,2]
[408514272,1773791438371,-714.33470123,5.173e-05,2]
[408514273,1773791438382,-789.29601842,5.173e-05,2]
[408514274,1773791438487,-72.23127141,5.173e-05,2]
[408514275,1773791438496,-3438.6185125,5.278e-05,2]
[408514276,1773791438506,-300.0,5.377e-05,2]
[408514277,1773791438516,-1113.0,5.377e-05,2]
[408514278,1773791438525,-7205.66051473,5.378e-05,2]
[408514279,1773791438535,-8035.58982741,5.478e-05,2]
[408514280,1773791438545,-4156.99217795,5.578e-05,2]
[408514288,1773791440441,433.67332783,0.00018744,120]
[408514292,1773791441229,-1233.78811424,5.578e-05,2]
[408514307,1773791443513,-1114.15037311,5.578e-05,2]
[408514335,1773791446421,-1989.44432476,5.578e-05,2]
[408514360,1773791446654,-186.72567524,5.583e-05,2]
[408514362,1773791446667,-313.27432476,5.583e-05,2]
[408514364,1773791446676,-500.0,5.583e-05,2]
[408514366,1773791446686,-500.0,5.583e-05,2]
[408514368,1773791446695,-8778.66775668,5.6e-05,2]
[408514371,1773791446714,-86.85138351,5.6e-05,2]
[408514373,1773791446723,-1776.18020336,5.606e-05,2]
[408514375,1773791446734,-216064.65665609,5.606e-05,2]
[408514378,1773791446753,-3618.3437353,5.606e-05,2]
[408514475,1773791472459,1051.31243703,0.00018316,120]
[408514476,1773791481656,200.0,0.00018235,120]
[408514477,1773791506735,1414.50302228,0.00018141,120]
[408514478,1773791516764,200.0,0.00015952,120]
[408514481,1773792043320,-4843.47,5.143e-05,2]
[408514523,1773792632590,-366.82802324,4.904e-05,2]
[408514560,1773792638929,-4633.17197676,4.904e-05,2]
[408514561,1773792638938,-454.8562391,5.054e-05,2]
[408514562,1773792638948,-196.130672,5.063e-05,2]
[408514563,1773792638958,-221.704745,5.248e-05,2]
[408514564,1773792638967,-948.0,5.252e-05,2]
[408514565,1773792638977,-395.45484051,5.253e-05,2]
[408514573,1773792641276,-104.54515949,5.253e-05,2]
[408514574,1773792641286,-500.0,5.253e-05,2]
[408514575,1773792641296,-500.00841163,5.253e-05,2]
[408514576,1773792641307,-96.86503833,5.253e-05,2]
[408514577,1773792641319,-403.13496167,5.253e-05,2]
[408514578,1773792641328,-189.0,5.276e-05,2]
[408514579,1773792641338,-300.0,5.276e-05,2]
[408514580,1773792641347,-300.0,5.276e-05,2]
[408514581,1773792641357,-300.0,5.276e-05,2]
[408514582,1773792641367,-500.0,5.277e-05,2]
[408514583,1773792641376,-500.0,5.277e-05,2]
[408514584,1773792641385,-391.842489,5.277e-05,2]
[408514585,1773792641394,-4083.52606324,5.278e-05,2]
[408514586,1773792641404,-673.43905249,5.278e-05,2]
[408514587,1773792641415,-379.72335834,5.278e-05,2]
[408514588,1773792641426,-591.51813598,5.278e-05,2]
[408514616,1773792647385,-253.7425319,5.126e-05,2]
[408514617,1773792647397,-4746.2574681,5.126e-05,2]
[408514618,1773792647406,-32990.06042601,5.178e-05,2]
[408514620,1773792647418,-8527.55368979,5.178e-05,2]
[408514623,1773792647433,-5098.51023176,5.178e-05,2]
[408514624,1773792647444,-14735.0,5.178e-05,2]
[408514639,1773792647569,-2888.27003825,5.178e-05,2]
[408514641,1773792647580,-3500.0,5.178e-05,2]
[408514643,1773792647591,-12467.90084128,5.178e-05,2]
[408514645,1773792647601,-7645.80169832,5.178e-05,2]
[408514648,1773792647619,-11400.91257509,5.178e-05,2]
[408514650,1773792647630,-2088.0,5.178e-05,2]
[408514777,1773793831732,-368.495,4.147e-05,2]
[408514778,1773793831743,-455.37603996,4.147e-05,2]
[408514853,1773793837854,-1789.01973514,4.147e-05,2]
[408514856,1773793837865,-2387.1092249,4.147e-05,2]
[408514858,1773793837874,-5000.0,4.189e-05,2]
[408514860,1773793837883,-300.0,4.358e-05,2]
[408514862,1773793837893,-300.0,4.358e-05,2]
[408514864,1773793837902,-500.0,4.673e-05,2]
[408514866,1773793837911,-500.0,4.673e-05,2]
[408514868,1773793837920,-500.0,4.673e-05,2]
[408514870,1773793837930,-1200.0,4.678e-05,2]
[408514871,1773793837938,-8504.58263299,4.7e-05,2]
[408514888,1773793840394,-299.52557253,4.106e-05,2]
[408514912,1773793842800,-359.66901507,4.106e-05,2]
[408514914,1773793842907,-2069.36148718,4.106e-05,2]
[408514916,1773793843142,-2029.20787857,4.106e-05,2]
[408514924,1773793846015,-242.23604665,4.106e-05,2]
[408514925,1773793846025,-9657.76395335,4.7e-05,2]
[408514926,1773793846036,-32610.72696116,4.7e-05,2]
[408514929,1773794666312,200.0,3e-05,10]
[408514930,1773794666332,39.0,3e-05,10]
[408514952,1773795031911,-3446.76645159,3.381e-05,2]
[408514954,1773795031922,-367.25,3.381e-05,2]
[408514965,1773795032019,-1185.98354841,3.381e-05,2]
[408514967,1773795032028,-2467.56587772,3.415e-05,2]
[408514969,1773795032037,-1261.74868511,3.449e-05,2]
[408514971,1773795032046,-280.0,3.548e-05,2]
[408514973,1773795032056,-196.1382073,4.241e-05,2]
[408514975,1773795032065,-300.0,4.472e-05,2]
[408514977,1773795032074,-500.0,4.473e-05,2]
[408514979,1773795032082,-500.0,4.473e-05,2]
[408514981,1773795032095,-500.0,4.473e-05,2]
[408514983,1773795032104,-500.0,4.473e-05,2]
[408514985,1773795032113,-500.0,4.573e-05,2]
[408514987,1773795032121,-429.96668567,4.573e-05,2]
[408515032,1773795040516,-323.95759423,4.527e-05,2]
[408515045,1773795045434,-4676.04240577,4.527e-05,2]
[408515046,1773795045444,-70.03331433,4.573e-05,2]
[408515048,1773795045454,-300.0,4.771e-05,2]
[408515049,1773795045464,-300.0,4.771e-05,2]
[408515050,1773795045474,-300.0,4.771e-05,2]
[408515051,1773795045483,-300.0,4.771e-05,2]
[408515052,1773795045494,-300.0,4.771e-05,2]
[408515053,1773795045503,-300.0,4.771e-05,2]
[408515054,1773795045513,-300.0,4.771e-05,2]
[408515055,1773795045523,-300.0,4.771e-05,2]
[408515056,1773795045534,-300.0,4.771e-05,2]
[408515057,1773795045543,-300.0,4.771e-05,2]
[408515058,1773795045553,-300.0,4.771e-05,2]
[408515059,1773795045563,-300.0,4.771e-05,2]
[408515060,1773795045573,-300.0,4.771e-05,2]
[408515061,1773795045582,-300.0,4.771e-05,2]
[408515063,1773795045592,-300.0,4.771e-05,2]
[408515065,1773795045601,-168.111218,4.779e-05,2]
[408515067,1773795045610,-600.0,4.865e-05,2]
[408515069,1773795045619,-420.0,4.919e-05,2]
[408515070,1773795045628,-3410.1764123,4.96e-05,2]
[408515071,1773795045637,-22518.11913094,4.96e-05,2]
[408515072,1773795045678,-3202.60659446,4.96e-05,2]
[408515073,1773795045687,-500.0,5e-05,2]
[408515074,1773795045696,-500.0,5e-05,2]
[408515076,1773795045706,-183.18788091,5e-05,2]
[408515078,1773795045716,-500.0,5e-05,2]
[408515080,1773795045997,-500.0,5e-05,2]
[408515081,1773795046008,-500.0,5e-05,2]
[408515083,1773795046017,-185.67870252,5e-05,2]
[408515085,1773795046027,-500.0,5e-05,2]
[408515086,1773795046036,-284.196,5e-05,2]
[408515088,1773795046045,-500.0,5e-05,2]
[408515090,1773795046054,-500.0,5e-05,2]
[408515092,1773795046064,-406.2651299,5e-05,2]
[408515094,1773795046073,-500.0,5e-05,2]
[408515096,1773795046082,-500.0,5e-05,2]
[408515098,1773795046091,-500.0,5e-05,2]
[408515100,1773795046103,-500.0,5e-05,2]
[408515102,1773795046112,-484.12215786,5e-05,2]
[408515104,1773795046121,-500.0,5e-05,2]
[408515106,1773795046131,-500.0,5e-05,2]
[408515108,1773795046141,-500.0,5e-05,2]
[408515110,1773795046151,-500.0,5e-05,2]
[408515112,1773795046160,-500.0,5e-05,2]
[408515114,1773795046170,-500.0,5e-05,2]
[408515115,1773795046179,-500.0,5e-05,2]
[408515117,1773795046188,-500.0,5e-05,2]
[408515119,1773795046197,-500.0,5e-05,2]
[408515121,1773795046207,-500.0,5e-05,2]
[408515123,1773795046216,-500.0,5e-05,2]
[408515125,1773795046225,-500.0,5e-05,2]
[408515126,1773795046235,-500.0,5e-05,2]
[408515128,1773795046244,-500.0,5e-05,2]
[408515129,1773795046254,-500.0,5e-05,2]
[408515131,1773795046263,-500.0,5e-05,2]
[408515133,1773795046272,-500.0,5e-05,2]
[408515135,1773795046282,-500.0,5e-05,2]
[408515137,1773795046292,-500.0,5e-05,2]
[408515139,1773795046302,-39.70742484,5e-05,2]
[408515141,1773795046313,-460.29257516,5e-05,2]
[408515143,1773795046322,-346.69870038,5e-05,2]
[408515150,1773795046387,-153.30129962,5e-05,2]
[408515152,1773795046396,-500.0,5e-05,2]
[408515154,1773795046406,-294.33606887,5e-05,2]
[408515156,1773795046415,-500.23160922,5e-05,2]
[408515158,1773795046424,-1206.69670215,5e-05,2]
[408515160,1773795046434,-1065.63550328,5e-05,2]
[408515162,1773795046443,-1181.03976786,5e-05,2]
[408515164,1773795046453,-151.0,5e-05,2]
[408515166,1773795046462,-151.0,5e-05,2]
[408515168,1773795046471,-1000.0,5.021e-05,2]
[408515170,1773795046480,-1000.0,5.021e-05,2]
[408515171,1773795046490,-1000.0,5.021e-05,2]
[408515174,1773795046500,-1000.0,5.021e-05,2]
[408515176,1773795046509,-1672.92420458,5.1e-05,2]
[408515254,1773796231992,-534.9825517,3.857e-05,2]
[408515311,1773796238279,-4465.0174483,3.857e-05,2]
[408515312,1773796238289,-1282.8420267,3.896e-05,2]
[408515313,1773796238298,-245.969113,4.415e-05,2]
[408515314,1773796238308,-245.969113,4.601e-05,2]
[408515315,1773796238317,-245.969113,4.787e-05,2]
[408515316,1773796238326,-6979.233186,4.8e-05,2]
[408515317,1773796240595,-4391.63616953,4.8e-05,2]
[408515318,1773796243165,-3966.070788,4.8e-05,2]
[408515319,1773796243176,-10994.22101228,4.8e-05,2]
[408515320,1773796243187,-800.0,4.8e-05,2]
[408515346,1773796246202,-1043.45878145,4.752e-05,2]
[408515349,1773796246213,-2780.26171104,4.752e-05,2]
[408515350,1773796246222,-68155.50602148,4.8e-05,2]
[408515511,1773797438328,-781.08495,4.373e-05,2]
[408515512,1773797438340,-2724.1758573,4.373e-05,2]
[408515513,1773797438350,-168.39596638,4.472e-05,2]
[408515517,1773797438519,-1031.60403362,4.472e-05,2]
[408515518,1773797438528,-5000.0,4.473e-05,2]
[408515519,1773797438537,-325.2802141,4.518e-05,2]
[408515520,1773797438547,-324.6726305,4.518e-05,2]
[408515521,1773797438556,-300.0,4.671e-05,2]
[408515522,1773797438565,-500.0,4.673e-05,2]
[408515523,1773797438574,-582.74042936,4.7e-05,2]
[408515524,1773797438583,-336.9815453,4.787e-05,2]
[408515525,1773797438592,-21783.412937,4.787e-05,2]
[408515526,1773797438601,-333.0,4.787e-05,2]
[408515527,1773797438610,-444.0,4.857e-05,2]
[408515528,1773797438619,-222.0,4.857e-05,2]
[408515529,1773797438628,-155.0,4.857e-05,2]
[408515530,1773797438637,-155.0,4.857e-05,2]
[408515531,1773797438646,-196.1247955,4.857e-05,2]
[408515532,1773797438656,-1680.0,4.919e-05,2]
[408515533,1773797438665,-500.0,4.973e-05,2]
[408515534,1773797438674,-555.0,4.973e-05,2]
[408515535,1773797438684,-245.969113,4.973e-05,2]
[408515536,1773797438693,-267.36279221,5e-05,2]
[408515537,1773797438702,-15031.73616566,5e-05,2]
[408515538,1773797438712,-20612.38722763,5e-05,2]
[408515539,1773797438721,-8968.99344832,5e-05,2]
[408515540,1773797438732,-2507.84039351,5e-05,2]
[408515541,1773797438743,-5415.11934441,5e-05,2]
[408515542,1773797438752,-6633.88412293,5e-05,2]
[408515543,1773797440827,-1175.66510949,5e-05,2]
[408515544,1773797440838,-545.70253031,5e-05,2]
[408515545,1773797440849,-4072.64277189,5e-05,2]
[408515551,1773797446136,-1504.3502,4.95e-05,2]
[408515566,1773797446272,-3495.6498,4.95e-05,2]
[408515568,1773797446281,-6324.27567232,5e-05,2]
[408515569,1773797446290,-1810.48106372,5e-05,2]
[408515571,1773797446301,-1012.15324198,5e-05,2]
[408515573,1773797446312,-4827.17282143,5e-05,2]
[408515575,1773797446323,-200.0,5e-05,2]
[408515577,1773797446332,-500.0,5e-05,2]
[408515579,1773797446341,-500.0,5e-05,2]
[408515581,1773797446350,-164.90246198,5e-05,2]
[408515583,1773797446359,-368.42858306,5e-05,2]
[408515584,1773797446371,-131.57141694,5e-05,2]
[408515585,1773797446380,-292.04722659,5e-05,2]
[408515586,1773797446391,-72.49469129,5e-05,2]
[408515587,1773797446400,-189.53196984,5e-05,2]
[408515588,1773797446409,-151.0,5e-05,2]
[408515590,1773797446418,-151.0,5e-05,2]
[408515592,1773797446427,-214.881172,5e-05,2]
[408515593,1773797446436,-151.0,5e-05,2]
[408515596,1773797446446,-153.09912,5e-05,2]
[408515597,1773797446455,-222.0,5e-05,2]
[408515598,1773797446464,-420.0,5.138e-05,2]
[408515599,1773797446474,-245.969113,5.159e-05,2]
[408515600,1773797446483,-300.0,5.201e-05,2]
[408515601,1773797446492,-300.0,5.201e-05,2]
[408515602,1773797446502,-300.0,5.201e-05,2]
[408515603,1773797446511,-300.0,5.201e-05,2]
[408515604,1773797446520,-300.0,5.201e-05,2]
[408515605,1773797446530,-300.0,5.201e-05,2]
[408515606,1773797446539,-300.0,5.201e-05,2]
[408515607,1773797446549,-300.0,5.201e-05,2]
[408515608,1773797446559,-300.0,5.201e-05,2]
[408515609,1773797446569,-300.0,5.201e-05,2]
[408515610,1773797446579,-300.0,5.201e-05,2]
[408515611,1773797446588,-300.0,5.201e-05,2]
[408515612,1773797446597,-300.0,5.201e-05,2]
[408515613,1773797446607,-300.0,5.201e-05,2]
[408515614,1773797446617,-300.0,5.201e-05,2]
[408515615,1773797446627,-600.0,5.201e-05,2]
[408515616,1773797446636,-1000.0,5.221e-05,2]
[408515617,1773797446645,-245.969113,5.344e-05,2]
[408515618,1773797446654,-500.0,5.382e-05,2]
[408515619,1773797446664,-500.0,5.382e-05,2]
[408515620,1773797446673,-500.0,5.382e-05,2]
[408515621,1773797446682,-500.0,5.382e-05,2]
[408515622,1773797446692,-500.0,5.382e-05,2]
[408515623,1773797446701,-500.0,5.382e-05,2]
[408515624,1773797446711,-500.0,5.382e-05,2]
[408515625,1773797446720,-410.47593255,5.382e-05,2]
[408515626,1773797446730,-537.6845,5.382e-05,2]
[408515627,1773797446740,-2150.738,5.382e-05,2]
[408515628,1773797446976,-160.0,5.411e-05,2]
[408515629,1773797446987,-500.0,5.479e-05,2]
[408515630,1773797446996,-461.08790186,5.479e-05,2]
[408515631,1773797447007,-196.205889,5.501e-05,2]
[408515632,1773797447017,-513.64070648,5.521e-05,2]
[408515633,1773797447026,-4860.5364172,5.531e-05,2]
[408515634,1773797447036,-583.0,5.652e-05,2]
[408515635,1773797447047,-651.84168736,5.697e-05,2]
[408515636,1773797447062,-432.69058174,5.697e-05,2]
[408515637,1773797447073,-436.76332837,5.721e-05,2]
[408515638,1773797447146,-283.23667163,5.721e-05,2]
[408515639,1773797447156,-242.99344664,5.768e-05,2]
[408515640,1773797447165,-537.6845,5.93e-05,2]
[408515641,1773797447175,-2230.315306,5.93e-05,2]
[408515642,1773797447184,-551.737,5.987e-05,2]
[408515643,1773797447193,-438.0,5.987e-05,2]
[408515644,1773797447202,-183.0,5.987e-05,2]
[408515645,1773797447211,-324.6654972,6.162e-05,2]
[408515646,1773797447220,-157.28,6.243e-05,2]
[408515647,1773797447230,-864.0,6.293e-05,2]
[408515648,1773797447239,-155.07,6.307e-05,2]
[408515649,1773797447248,-150.0,6.307e-05,2]
[408515650,1773797447257,-150.0,6.307e-05,2]
[408515651,1773797447267,-150.0,6.307e-05,2]
[408515652,1773797447277,-150.093,6.307e-05,2]
[408515653,1773797447286,-454.883801,6.323e-05,2]
[408515654,1773797447295,-26127.20945004,6.344e-05,2]
[408515655,1773797447304,-2312.83697232,6.478e-05,2]
[408515656,1773797447313,-1000.0,6.5e-05,2]
[408515657,1773797447323,-1000.0,6.5e-05,2]
[408515658,1773797447332,-1000.0,6.5e-05,2]
[408515659,1773797447341,-1000.0,6.5e-05,2]
[408515660,1773797447350,-1000.0,6.5e-05,2]
[408515661,1773797447359,-2614.90417152,6.628e-05,2]
[408515662,1773797447369,-316.96749452,6.849e-05,2]
[408515663,1773797447378,-1000.0,6.923e-05,2]
[408515664,1773797447387,-324.7177055,6.986e-05,2]
[408515665,1773797447396,-34322.3488692,7e-05,2]
[408515666,1773797447405,-2398.4119403,7.026e-05,2]
[408515667,1773797447415,-500.0,7.268e-05,2]
[408515668,1773797447424,-500.0,7.268e-05,2]
[408515669,1773797447433,-2122.83354069,7.574e-05,2]
[408515674,1773797818544,500.78,2.001e-05,2]
[408515675,1773797854091,250.39,2.001e-05,2]
[408515717,1773798632520,-903.63799967,2.41e-05,2]
[408515756,1773798638583,-1200.0,2.41e-05,2]
[408515763,1773798641102,-452.28667416,2.41e-05,2]
[408515770,1773798643642,-396.54944253,2.41e-05,2]
[408515780,1773798646607,-2047.52588364,2.41e-05,2]
[408515781,1773798646616,-2483.82948037,2.434e-05,2]
[408515782,1773798646625,-741.81851289,2.61e-05,2]
[408515783,1773798646745,-458.18148711,2.61e-05,2]
[408515784,1773798646754,-1262.47117222,2.612e-05,2]
[408515785,1773798646763,-300.0,2.789e-05,2]
[408515786,1773798646773,-300.0,2.794e-05,2]
[408515787,1773798646782,-300.0,2.794e-05,2]
[408515788,1773798646791,-300.0,2.794e-05,2]
[408515789,1773798646800,-300.0,2.794e-05,2]
[408515790,1773798646809,-300.0,2.794e-05,2]
[408515791,1773798646818,-300.0,2.794e-05,2]
[408515792,1773798646827,-300.0,2.794e-05,2]
[408515793,1773798646836,-300.0,2.794e-05,2]
[408515794,1773798646846,-300.0,2.794e-05,2]
[408515795,1773798646855,-300.0,2.794e-05,2]
[408515796,1773798646864,-300.0,2.794e-05,2]
[408515797,1773798646873,-300.0,2.794e-05,2]
[408515798,1773798646882,-16.6575629,2.794e-05,2]
[408515869,1773799831750,-768.2139541,4.705e-05,2]
[408515883,1773799837779,-3112.09942465,4.705e-05,2]
[408515884,1773799837789,-212.263572,4.801e-05,2]
[408515885,1773799837799,-701.0,4.999e-05,2]
[408515886,1773799837810,-5116.78421751,5e-05,2]
[408515887,1773799837820,-212.263572,5.004e-05,2]
[408515888,1773799837830,-500.0,5.073e-05,2]
[408515889,1773799837840,-505.06564108,5.073e-05,2]
[408515890,1773799837850,-300.0,5.099e-05,2]
[408515891,1773799837859,-300.0,5.099e-05,2]
[408515892,1773799837868,-300.0,5.099e-05,2]
[408515893,1773799837878,-300.0,5.099e-05,2]
[408515894,1773799837887,-300.0,5.099e-05,2]
[408515895,1773799837897,-300.0,5.099e-05,2]
[408515896,1773799837907,-300.0,5.099e-05,2]
[408515897,1773799837916,-300.0,5.099e-05,2]
[408515898,1773799837924,-300.0,5.099e-05,2]
[408515899,1773799837934,-300.0,5.099e-05,2]
[408515900,1773799837943,-300.0,5.099e-05,2]
[408515901,1773799837952,-300.0,5.099e-05,2]
[408515902,1773799837962,-300.0,5.099e-05,2]
[408515903,1773799837971,-300.0,5.099e-05,2]
[408515904,1773799837981,-300.0,5.099e-05,2]
[408515905,1773799837990,-10120.91043491,5.1e-05,2]
[408515906,1773799837999,-41347.2336537,5.1e-05,2]
[408515907,1773799838011,-809.1031,5.1e-05,2]
[408515908,1773799838021,-53575.38157506,5.1e-05,2]
[408515912,1773799840146,-1692.7,5.1e-05,2]
[408515913,1773799840199,-841.52588397,5.1e-05,2]
[408515925,1773799842871,-6630.6594506,5.1e-05,2]
[408515926,1773799842882,-302.62139999,5.1e-05,2]
[408515927,1773799842899,-4587.0657763,5.1e-05,2]
[408515928,1773799842910,-2218.61898699,5.1e-05,2]
[408515929,1773799842921,-2459.88076605,5.1e-05,2]
[408515930,1773799842932,-398.40894143,5.1e-05,2]
[408515945,1773799845797,-1064.08411433,5e-05,2]
[408515946,1773799845806,-2355.03616464,5.1e-05,2]
[408515947,1773799845819,-109641.03216529,5.1e-05,2]
[408515948,1773799845833,-983.43426962,5.1e-05,2]
[408515949,1773799845953,-17358.80346027,5.1e-05,2]
[408515971,1773801031773,-175.33338219,4.13e-05,2]
[408515972,1773801031783,-5000.0,4.468e-05,2]
[408515973,1773801031792,-151.0,4.513e-05,2]
[408515974,1773801031802,-176.9477504,4.525e-05,2]
[408515975,1773801031811,-500.0,4.673e-05,2]
[408515976,1773801031821,-500.0,4.673e-05,2]
[408515977,1773801031830,-501.01097084,4.673e-05,2]
[408515978,1773801031839,-1200.0,4.698e-05,2]
[408515979,1773801031849,-300.0,4.699e-05,2]
[408515980,1773801031858,-257.0,4.699e-05,2]
[408515981,1773801031868,-300.0,4.699e-05,2]
[408515982,1773801031877,-5457.70127133,4.7e-05,2]
[408515983,1773801031889,-438.23496928,4.7e-05,2]
[408515984,1773801031903,-2100.37719293,4.7e-05,2]
[408515985,1773801031914,-1006.81783792,4.7e-05,2]
[408515990,1773801037867,-1160.22783125,4.7e-05,2]
[408516020,1773801040451,-5500.023309,4.6e-05,2]
[408516023,1773801040463,-5059.02002272,4.6e-05,2]
[408516027,1773801040506,-1186.37384849,4.6e-05,2]
[408516050,1773801043169,-5233.88109999,4.6e-05,2]
[408516051,1773801043223,-16077.75441567,4.6e-05,2]
[408516052,1773801043235,-10774.322639,4.6e-05,2]
[408516059,1773801046039,-44528.94545538,4.6e-05,2]
[408516060,1773801046051,-13618.07696318,4.6e-05,2]
[408516191,1773802240527,-2245.936616,4.03e-05,2]
[408516192,1773802240537,-1728.53406358,4.2e-05,2]
[408516193,1773802240547,-517.40255242,4.2e-05,2]
[408516194,1773802240556,-682.59744758,4.37e-05,2]
[408516196,1773802240586,-1563.33916842,4.37e-05,2]
[408516197,1773802240595,-300.0,4.372e-05,2]
[408516198,1773802240604,-1161.71252558,4.372e-05,2]
[408516203,1773802243254,-38.28747442,4.372e-05,2]
[408516204,1773802243264,-500.0,4.373e-05,2]
[408516205,1773802243273,-500.0,4.373e-05,2]
[408516206,1773802243282,-500.0,4.373e-05,2]
[408516207,1773802243291,-430.16399117,4.373e-05,2]
[408516208,1773802243300,-502.38986693,4.373e-05,2]
[408516209,1773802243309,-44405.34008811,4.4e-05,2]
[408516210,1773802243321,-2500.01141009,4.4e-05,2]
[408516220,1773802246730,-6941.10724371,4.4e-05,2]
[408516221,1773802246746,-121888.17898306,4.4e-05,2]
[408516224,1773802843053,-167.63743,3.696e-05,2]
[408516258,1773803432129,-28.5042353,3.696e-05,2]
[408516260,1773803432138,-2570.00049915,4.1e-05,2]
[408516266,1773803432187,-425.97873272,4.1e-05,2]
[408516330,1773803438340,-1697004.02076813,4.1e-05,2]
[408516331,1773803438350,-180.25628847,4.173e-05,2]
[408516332,1773803438359,-500.0,4.173e-05,2]
[408516333,1773803438368,-500.0,4.173e-05,2]
[408516334,1773803438378,-500.0,4.173e-05,2]
[408516335,1773803438387,-300.0,4.199e-05,2]
[408516336,1773803438396,-300.0,4.199e-05,2]
[408516337,1773803438406,-300.0,4.199e-05,2]
[408516338,1773803438419,-1200.0,4.199e-05,2]
[408516339,1773803438428,-209.11779386,4.2e-05,2]
[408516340,1773803438438,-279765.23756226,4.2e-05,2]
[408516341,1773803438453,-2078.55129964,4.2e-05,2]
[408516387,1773803443451,-14465.5243298,4.2e-05,2]
[408516388,1773803443462,-28519.46062824,4.2e-05,2]
[408516389,1773803443474,-1170297.87321888,4.2e-05,2]
[408516390,1773803443483,-221.48005241,4.274e-05,2]
[408516391,1773803443492,-157.533,4.299e-05,2]
[408516392,1773803443502,-600.0,4.385e-05,2]
[408516393,1773803443512,-187.88293215,4.406e-05,2]
[408516394,1773803443521,-196.1382073,4.518e-05,2]
[408516395,1773803443530,-2245.936616,4.539e-05,2]
[408516396,1773803443539,-324.6804912,4.553e-05,2]
[408516397,1773803443548,-420.0,4.619e-05,2]
[408516398,1773803443558,-420.0,4.619e-05,2]
[408516399,1773803443567,-420.0,4.619e-05,2]
[408516400,1773803443576,-1680.0,4.619e-05,2]
[408516401,1773803443585,-2245.936616,4.709e-05,2]
[408516402,1773803443594,-1000.0,4.721e-05,2]
[408516403,1773803443603,-1000.0,4.721e-05,2]
[408516404,1773803443613,-1004.4562048,4.721e-05,2]
[408516405,1773803443622,-720.0,4.823e-05,2]
[408516406,1773803443631,-2245.936616,4.879e-05,2]
[408516407,1773803443641,-13708.6152277,4.942e-05,2]
[408516408,1773803443650,-151.0,4.942e-05,2]
[408516409,1773803443659,-151.0,4.942e-05,2]
[408516410,1773803443668,-151.0,4.942e-05,2]
[408516411,1773803443677,-151.0,4.942e-05,2]
[408516412,1773803443686,-151.0,4.942e-05,2]
[408516413,1773803443695,-5900.12007998,5e-05,2]
[408516414,1773803443704,-12985.73803718,5e-05,2]
[408516415,1773803443713,-14411.93115243,5e-05,2]
[408516416,1773803443722,-11559.54492204,5e-05,2]
[408516417,1773803443731,-14525.30019997,5e-05,2]
[408516418,1773803443740,-222.5492174,5e-05,2]
[408516419,1773803443749,-382.21753797,5e-05,2]
[408516420,1773803443758,-343.51407255,5e-05,2]
[408516421,1773803443768,-369.57142556,5e-05,2]
[408516422,1773803443776,-1326.14099764,5e-05,2]
[408516423,1773803443786,-1474.9749718,5e-05,2]
[408516424,1773803443798,-1513.38332145,5e-05,2]
[408516425,1773803443807,-602.49224681,5e-05,2]
[408516426,1773803443817,-151.0,5e-05,2]
[408516427,1773803443826,-151.0,5e-05,2]
[408516428,1773803443836,-151.0,5e-05,2]
[408516429,1773803443845,-151.0,5e-05,2]
[408516430,1773803443854,-151.0,5e-05,2]
[408516431,1773803443864,-151.0,5e-05,2]
[408516432,1773803443874,-151.0,5e-05,2]
[408516433,1773803443884,-151.0,5e-05,2]
[408516434,1773803443894,-151.0,5e-05,2]
[408516435,1773803443903,-151.0,5e-05,2]
[408516436,1773803443912,-151.0,5e-05,2]
[408516437,1773803443921,-151.0,5e-05,2]
[408516438,1773803443929,-151.0,5e-05,2]